bitfinex-derivatives/quotes_SOLF0:USTF0_20260126
["timestamp","ask_amount","ask_price","bid_price","bid_amount"]
[1769441424483,61.58829638,123.96,123.88,61.1731098]
[1769441424682,329.2649,123.98,123.88,61.1731098]
[1769441424877,390.85319638,123.98,123.88,61.1731098]
[1769441425082,68.85319638,123.98,123.88,61.1731098]
[1769441425283,7.264,124.0,123.91,61.1731098]
[1769441425486,379.65229638,124.0,123.91,61.1731098]
[1769441426380,61.58829638,123.99,123.91,61.1731098]
[1769441426583,61.58829638,123.99,123.89,61.1731098]
[1769441426886,7.2653,123.97,123.89,61.1731098]
[1769441427388,68.85359638,123.97,123.89,61.1731098]
[1769441427882,68.85359638,123.97,123.89,68.4429098]
[1769441428578,7.2653,123.97,123.9,68.4423098]
[1769441430290,7.2643,123.99,123.9,61.1731098]
[1769441430482,322.04,124.0,123.91,61.1731098]
[1769441430986,67.67482181,124.04,123.95,61.1731098]
[1769441431179,61.58829638,124.04,123.95,61.1731098]
[1769441431374,61.58829638,124.04,123.98,7.2646]
[1769441431878,298.38,124.06,123.98,7.2646]
[1769441432079,298.38,124.06,123.98,68.4377098]
[1769441432790,359.96829638,124.06,123.98,68.4377098]
[1769441433981,61.58829638,124.05,123.98,68.4377098]
[1769441434775,119.00412543,124.08,124.0,61.1731098]
[1769441434776,68.84749638,124.08,124.0,61.1731098]
[1769441435683,174.51579638,124.07,123.97,61.1731098]
[1769441435884,61.58829638,124.06,123.97,61.1731098]
[1769441436482,61.58829638,124.06,123.98,61.1731098]
[1769441437988,61.58829638,124.06,123.99,7.2639]
[1769441438189,61.58829638,124.06,123.99,68.4370098]
[1769441438488,61.58829638,124.06,123.99,61.1731098]
[1769441438686,61.58829638,124.06,123.96,61.1731098]
[1769441439187,328.08652543,124.08,123.98,61.1731098]
[1769441439382,61.58829638,124.08,123.98,61.1731098]
[1769441440887,7.2595,124.07,124.0,7.2634]
[1769441441392,434.8885,124.09,124.0,61.1731098]
[1769441441393,321.98,124.09,124.0,61.1731098]
[1769441441990,61.58829638,124.11,124.03,7.2614]
[1769441442194,61.58829638,124.11,124.02,61.1731098]
[1769441443287,7.2582,124.09,124.03,7.2617]
[1769441443590,61.58829638,124.11,124.03,7.2617]
[1769441443793,68.84589638,124.11,124.03,7.2617]
[1769441444092,68.84589638,124.11,124.04,7.2611]
[1769441444287,321.94,124.12,124.04,61.1731098]
[1769441444691,321.94,124.12,124.06,7.2599]
[1769441445991,383.52829638,124.12,124.04,61.1731098]
[1769441446297,61.58829638,124.11,124.04,61.1731098]
[1769441446497,68.84589638,124.1,124.03,7.2612]
[1769441447592,61.58829638,124.09,124.01,68.4354098]
[1769441447788,61.58829638,124.09,124.01,61.1731098]
[1769441448293,61.58829638,124.09,123.98,61.1731098]
[1769441448294,61.58829638,124.07,123.98,61.1731098]
[1769441449994,68.84799638,124.07,123.99,7.264]
[1769441450196,61.58829638,124.07,123.99,7.264]
[1769441450490,59.75071409,124.05,123.98,61.1731098]
[1769441450695,59.75071409,124.05,123.97,7.2647]
[1769441451094,67.01161409,124.05,123.98,7.2645]
[1769441451298,59.75071409,124.05,123.98,62.6363085]
[1769441452092,6.08652543,124.08,123.98,62.6363085]
[1769441452093,270.74,124.07,123.98,62.6363085]
[1769441452301,330.49071409,124.07,123.98,62.6363085]
[1769441452890,337.75011409,124.07,124.0,7.2634]
[1769441453295,337.75011409,124.07,124.0,62.6363085]
[1769441453497,59.75071409,124.06,123.98,62.6363085]
[1769441454300,59.75071409,124.06,124.0,7.2635]
[1769441455097,65.83723952,124.11,124.01,62.6363085]
[1769441455300,59.75071409,124.1,124.01,62.6363085]
[1769441455698,59.75071409,124.09,124.01,62.6363085]
[1769441456596,59.75071409,124.09,124.01,69.8988085]
[1769441457003,65.83723952,124.09,123.98,175.6404085]
[1769441457208,67.00971409,124.08,124.0,7.2634]
[1769441459797,67.01021409,124.07,124.0,7.2634]
[1769441460205,67.01071409,124.06,123.98,69.9004085]
[1769441460599,112.8998,124.1,123.98,69.9004085]
[1769441460600,19.91309242,124.29,123.98,62.6363085]
[1769441460807,59.75071409,124.18,124.09,62.6363085]
[1769441461007,6.08652543,124.2,124.09,62.6363085]
[1769441461206,6.08652543,124.2,124.11,62.6363085]
[1769441461607,59.75071409,124.21,124.11,175.5220085]
[1769441461903,59.75071409,124.21,124.12,62.6363085]
[1769441462100,59.75071409,124.2,124.12,62.6363085]
[1769441462299,65.83723952,124.2,124.09,62.6363085]
[1769441462496,67.00321409,124.19,124.1,7.2574]
[1769441462901,59.75071409,124.19,124.09,62.6363085]
[1769441463101,59.75071409,124.16,124.08,7.2586]
[1769441463296,59.75071409,124.16,124.06,62.6363085]
[1769441463700,59.75071409,124.15,124.06,175.5667085]
[1769441464004,59.75071409,124.15,124.07,62.6363085]
[1769441464601,112.8191,124.19,124.06,112.9304]
[1769441464602,59.75071409,124.21,124.09,62.6363085]
[1769441464806,59.75071409,124.21,124.1,175.5308085]
[1769441465005,59.75071409,124.21,124.11,62.6363085]
[1769441465802,59.75071409,124.19,124.12,7.2563]
[1769441466209,59.75071409,124.19,124.11,62.6363085]
[1769441466398,67.00321409,124.19,124.1,7.2572]
[1769441466805,67.00391409,124.18,124.1,7.2572]
[1769441468907,321.72,124.2,124.11,62.6363085]
[1769441469103,381.47071409,124.2,124.11,62.6363085]
[1769441469709,388.72261409,124.2,124.13,7.2556]
[1769441470012,59.75071409,124.19,124.11,62.6363085]
[1769441470910,59.75071409,124.19,124.13,7.2558]
[1769441471511,59.75071409,124.22,124.14,7.2552]
[1769441471710,59.75071409,124.22,124.12,62.6363085]
[1769441472110,67.00201409,124.21,124.13,7.2558]
[1769441472314,59.75071409,124.21,124.12,62.6363085]
[1769441473410,67.00331409,124.19,124.12,69.8926085]
[1769441473610,67.00331409,124.19,124.12,7.2563]
[1769441476821,59.75071409,124.19,124.13,7.2556]
[1769441477727,59.75071409,124.19,124.14,7.2552]
[1769441477922,59.75071409,124.19,124.12,62.6363085]
[1769441478522,7.253,124.18,124.12,69.8924085]
[1769441479119,67.00311409,124.19,124.12,69.8924085]
[1769441480333,59.75071409,124.19,124.1,7.2571]
[1769441480827,62.24171489,124.18,124.1,7.2571]
[1769441481027,7.2542,124.16,124.1,7.2571]
[1769441481626,7.2542,124.16,124.06,112.9331]
[1769441481627,62.24171489,124.14,124.06,66.54716843]
[1769441482629,69.49701489,124.14,124.07,7.2593]
[1769441482932,62.24171489,124.14,124.06,66.54716843]
[1769441483927,7.2559,124.13,124.06,73.80706843]
[1769441484125,69.49761489,124.13,124.06,73.80706843]
[1769441484527,75.56802654,124.15,124.07,66.54716843]
[1769441484824,68.31292654,124.15,124.07,66.54716843]
[1769441485223,69.49711489,124.14,124.04,179.49436843]
[1769441485726,69.49711489,124.14,124.05,66.54716843]
[1769441487031,69.49711489,124.14,124.06,7.2598]
[1769441487532,69.49761489,124.13,124.06,7.2598]
[1769441488129,75.56882654,124.13,124.06,7.2598]
[1769441488438,62.24171489,124.11,124.04,7.2606]
[1769441488632,68.31292654,124.11,124.02,66.54716843]
[1769441489129,69.49991489,124.09,124.02,66.54716843]
[1769441490029,69.49991489,124.09,124.02,73.80946843]
[1769441490428,69.50071489,124.08,123.99,66.54716843]
[1769441490630,62.24171489,124.08,123.99,66.54716843]
[1769441491829,69.50121489,124.07,123.99,66.54716843]
[1769441493032,69.50121489,124.07,123.99,73.81116843]
[1769441493429,69.50181489,124.06,123.99,66.54716843]
[1769441494637,68.31292654,124.09,123.99,66.54716843]
[1769441495034,68.31292654,124.07,123.99,66.54716843]
[1769441495439,7.2606,124.05,123.99,66.54716843]
[1769441496140,7.2606,124.05,123.98,7.2641]
[1769441496141,69.50231489,124.05,123.98,7.2641]
[1769441497238,62.24171489,124.03,123.96,7.2653]
[1769441497539,68.31292654,124.03,123.92,66.54716843]
[1769441497745,68.31292654,124.03,123.94,66.54716843]
[1769441498242,62.24171489,124.03,123.96,66.54716843]
[1769441499634,68.31292654,124.05,123.96,66.54716843]
[1769441499950,75.57392654,124.05,123.98,7.2646]
[1769441500242,68.31292654,124.05,123.96,66.54716843]
[1769441500540,7.2621,124.03,123.96,73.81266843]
[1769441500741,69.50381489,124.03,123.96,73.81266843]
[1769441501937,69.50481489,124.01,123.94,7.2666]
[1769441502442,68.31292654,124.01,123.93,66.54716843]
[1769441502646,7.2638,124.0,123.93,73.81456843]
[1769441502948,62.24171489,124.0,123.9,179.62606843]
[1769441503147,62.24171489,123.99,123.9,66.54716843]
[1769441504140,68.31292654,123.99,123.9,66.54716843]
[1769441504347,7.2653,123.97,123.9,66.54716843]
[1769441505432,7.2659,123.96,123.9,73.81636843]
[1769441505640,62.24171489,123.96,123.88,66.54716843]
[1769441506146,69.50781489,123.96,123.89,7.2698]
[1769441506450,68.31292654,123.99,123.88,66.54716843]
[1769441506836,62.24171489,123.98,123.88,66.54716843]
[1769441507239,7.2653,123.97,123.9,7.2692]
[1769441508148,62.24171489,123.96,123.88,66.54716843]
[1769441509535,71.39493926,123.95,123.88,66.54716843]
[1769441510349,71.39413926,123.97,123.89,62.57428414]
[1769441510552,70.19975091,123.99,123.89,62.57428414]
[1769441511747,64.12853926,123.97,123.89,62.57428414]
[1769441512547,64.12853926,123.96,123.89,62.57428414]
[1769441513443,70.19975091,123.99,123.9,62.57428414]
[1769441513647,2.3880568,123.98,123.9,64.96234094]
[1769441513846,2.3880568,123.97,123.9,62.57428414]
[1769441514049,71.39323926,123.98,123.9,62.57428414]
[1769441514050,2.3880568,123.95,123.9,62.57428414]
[1769441514237,2.3880568,123.95,123.87,64.96234094]
[1769441514642,2.3880568,123.94,123.87,64.96234094]
[1769441515042,2.3880568,123.94,123.89,7.2693]
[1769441515444,2.3880568,123.95,123.89,7.2693]
[1769441517252,2.3880568,123.97,123.91,62.57428414]
[1769441517756,64.12853926,123.98,123.91,62.57428414]
[1769441518247,64.12853926,124.01,123.91,62.57428414]
[1769441518451,64.12853926,124.01,123.93,62.57428414]
[1769441518947,7.2626,124.02,123.96,7.2658]
[1769441519347,64.12853926,124.02,123.92,62.57428414]
[1769441519753,7.2635,124.0,123.94,7.2665]
[1769441520147,64.12853926,124.02,123.94,7.2665]
[1769441520843,71.39213926,124.0,123.92,69.84208414]
[1769441521342,64.12853926,124.0,123.92,69.84208414]
[1769441521554,7.2634,124.01,123.92,62.57428414]
[1769441521847,64.12853926,124.01,123.92,62.57428414]
[1769441522947,64.12853926,124.01,123.93,62.57428414]
[1769441523355,71.39153926,124.01,123.93,69.84128414]
[1769441523554,64.12853926,124.01,123.93,69.84128414]
[1769441523853,71.39213926,124.0,123.93,69.84128414]
[1769441524157,64.12853926,124.0,123.93,69.84128414]
[1769441525760,7.2641,123.99,123.93,69.84128414]
[1769441526649,64.12853926,124.0,123.93,69.84128414]
[1769441527160,71.39053926,124.03,123.94,62.57428414]
[1769441527348,64.12853926,124.03,123.95,62.57428414]
[1769441528042,71.39103926,124.02,123.95,62.57428414]
[1769441530152,71.39103926,124.02,123.96,7.2658]
[1769441531051,71.39143926,124.01,123.94,7.2665]
[1769441531567,64.12853926,123.99,123.89,62.57428414]
[1769441532258,7.2659,123.96,123.89,62.57428414]
[1769441532756,64.12853926,123.97,123.9,7.2693]
[1769441533361,71.39443926,123.96,123.89,62.57428414]
[1769441533751,64.12853926,123.96,123.89,62.57428414]
[1769441534258,64.12853926,123.96,123.89,69.84418414]
[1769441534449,64.12853926,123.96,123.89,62.57428414]
[1769441535454,7.2664,123.95,123.89,62.57428414]
[1769441536357,7.2664,123.95,123.86,376.8335]
[1769441536358,64.12853926,123.95,123.86,62.57428414]
[1769441536956,64.12853926,123.94,123.86,62.57428414]
[1769441537663,64.12853926,123.94,123.86,69.84588414]
[1769441539156,71.39563926,123.94,123.86,69.84588414]
[1769441540760,69.78728136,123.93,123.86,69.84588414]
[1769441540965,113.0265,123.96,123.84,63.13118292]
[1769441541170,62.51948136,123.98,123.9,63.13118292]
[1769441541468,69.78468136,123.98,123.9,63.13118292]
[1769441541861,62.51948136,123.97,123.9,63.13118292]
[1769441542268,69.78508136,123.97,123.87,63.13118292]
[1769441542855,69.78508136,123.97,123.87,70.40198292]
[1769441543065,62.51948136,123.97,123.89,63.13118292]
[1769441543563,62.51948136,123.97,123.89,70.40058292]
[1769441543765,62.51948136,123.99,123.9,63.13118292]
[1769441544269,335.47554903,124.01,123.92,63.13118292]
[1769441544270,322.12,124.01,123.92,63.13118292]
[1769441544467,62.51948136,124.0,123.92,63.13118292]
[1769441545165,62.51948136,123.99,123.9,7.2693]
[1769441547272,62.51948136,123.98,123.88,7.2703]
[1769441547670,62.51948136,123.95,123.87,63.13118292]
[1769441550361,62.51948136,123.95,123.87,70.40208292]
[1769441550776,62.51948136,123.95,123.89,63.13118292]
[1769441551283,62.51948136,123.95,123.86,63.13118292]
[1769441551572,68.61203039,123.94,123.83,63.13118292]
[1769441551974,69.78778136,123.92,123.84,7.2726]
[1769441553676,69.78858136,123.91,123.83,63.13118292]
[1769441554571,7.2694,123.9,123.83,63.13118292]
[1769441554972,62.51948136,123.91,123.84,70.40388292]
[1769441555266,69.78828136,123.91,123.84,70.40388292]
[1769441556667,7.2694,123.9,123.84,70.40388292]
[1769441556872,62.51948136,123.9,123.82,7.2735]
[1769441557174,62.51948136,123.9,123.82,70.40468292]
[1769441557571,2.39137744,123.89,123.82,70.40468292]
[1769441557970,69.79018136,123.88,123.81,2.39137744]
[1769441558172,72.1815588,123.88,123.8,65.52256036]
[1769441558877,64.9108588,123.88,123.8,65.52256036]
[1769441559676,62.51948136,123.9,123.8,63.13118292]
[1769441561981,62.51948136,123.87,123.77,63.13118292]
[1769441562878,62.51948136,123.85,123.77,63.13118292]
[1769441563073,62.51948136,123.85,123.73,63.13118292]
[1769441563277,62.51948136,123.84,123.73,63.13118292]
[1769441564184,62.51948136,123.82,123.73,63.13118292]
[1769441565180,68.61994118,123.82,123.73,63.13118292]
[1769441565775,68.61994118,123.82,123.7,63.13118292]
[1769441565980,62.51948136,123.79,123.64,63.13118292]
[1769441566179,62.51948136,123.79,123.67,63.13118292]
[1769441567176,62.51948136,123.79,123.67,69.23164274]
[1769441568082,62.51948136,123.79,123.68,63.13118292]
[1769441568971,65.52447319,123.77,123.68,63.13118292]
[1769441570674,6.10045982,123.78,123.68,63.13118292]
[1769441570874,65.52447319,123.79,123.68,63.13118292]
[1769441571775,65.52447319,123.77,123.68,63.13118292]
[1769441572178,71.62493301,123.8,123.68,63.13118292]
[1769441572381,65.52447319,123.8,123.68,63.13118292]
[1769441573280,65.52447319,123.8,123.7,63.39614872]
[1769441574073,229.38493301,123.83,123.7,63.39614872]
[1769441574273,65.52447319,123.83,123.72,63.39614872]
[1769441575882,65.52447319,123.86,123.74,63.39614872]
[1769441577775,65.52447319,123.86,123.76,63.39614872]
[1769441578081,65.52447319,123.86,123.75,6.10045982]
[1769441578082,65.52447319,123.89,123.8,63.39614872]
[1769441578888,72.79437319,123.89,123.8,70.67084872]
[1769441579088,65.52447319,123.89,123.8,70.67084872]
[1769441579284,65.52447319,123.89,123.8,63.39614872]
[1769441579492,65.52447319,123.89,123.81,63.39614872]
[1769441580582,65.52447319,123.89,123.82,70.67004872]
[1769441580783,65.52447319,123.92,123.82,63.39614872]
[1769441581179,65.52447319,123.91,123.82,63.39614872]
[1769441581380,113.0458,123.94,123.85,63.39614872]
[1769441581381,65.52447319,123.94,123.85,63.39614872]
[1769441581779,119.13705982,123.95,123.85,63.39614872]
[1769441581780,72.79227319,123.93,123.85,70.66824872]
[1769441582590,65.52447319,123.93,123.85,70.66824872]
[1769441583991,72.79217319,123.93,123.85,70.66824872]
[1769441584293,65.52447319,123.93,123.86,7.2715]
[1769441584587,65.52447319,123.96,123.87,63.39614872]
[1769441585184,65.52447319,123.96,123.88,70.66644872]
[1769441585890,65.52447319,123.96,123.89,7.2697]
[1769441586191,65.52447319,123.96,123.88,63.39614872]
[1769441586393,65.52447319,123.96,123.85,63.39614872]
[1769441586889,72.79077319,123.96,123.87,7.2707]
[1769441587087,65.52447319,123.96,123.87,7.2707]
[1769441587294,65.52447319,123.95,123.85,63.39614872]
[1769441587887,65.52447319,123.94,123.86,7.2712]
[1769441588490,65.52447319,123.94,123.87,7.2707]
[1769441589387,72.79167319,123.94,123.87,7.2707]
[1769441590187,184.64273301,123.97,123.88,70.66654872]
[1769441590492,184.64273301,123.97,123.88,63.39614872]
[1769441590493,65.52447319,123.97,123.88,63.39614872]
[1769441591087,65.52447319,123.96,123.85,176.51734872]
[1769441591289,71.62493301,123.95,123.85,63.39614872]
[1769441591894,65.52447319,123.95,123.87,70.66714872]
[1769441592092,65.52447319,123.95,123.87,63.39614872]
[1769441592590,72.79097319,123.95,123.87,63.39614872]
[1769441593093,6.10045982,123.97,123.89,7.2699]
[1769441593293,65.52447319,123.98,123.89,70.66604872]
[1769441593595,65.52447319,123.98,123.89,63.39614872]
[1769441593596,7.2665,123.95,123.89,63.39614872]
[1769441594592,7.2672,123.94,123.86,70.66734872]
[1769441594796,65.52447319,123.94,123.86,70.66734872]
[1769441594982,71.61838986,123.94,123.83,63.39614872]
[1769441595186,65.52447319,123.93,123.83,63.39614872]
[1769441595390,7.2683,123.92,123.85,7.2722]
[1769441596399,6.09391667,123.94,123.85,7.2722]
[1769441596400,7.2674,123.94,123.85,63.39614872]
[1769441596689,65.52447319,123.96,123.86,63.39614872]
[1769441596885,7.2664,123.95,123.88,70.66654872]
[1769441597695,7.2664,123.95,123.86,113.113]
[1769441597696,72.79147319,123.94,123.86,70.66724872]
[1769441597897,72.79147319,123.94,123.86,63.39614872]
[1769441598995,72.79147319,123.94,123.87,75.20947917]
[1769441599193,63.8200596,124.0,123.89,67.93847917]
[1769441599398,69.91397627,124.0,123.89,67.93847917]
[1769441599596,69.91397627,124.0,123.91,7.2686]
[1769441600195,69.91397627,124.0,123.89,67.93847917]
[1769441600196,71.0838596,124.0,123.93,7.2675]
[1769441600701,63.8200596,124.0,123.92,7.268]
[1769441601401,63.8200596,124.0,123.92,75.20647917]
[1769441601601,63.8200596,124.0,123.92,67.93847917]
[1769441601797,63.8200596,124.01,123.92,67.93847917]
[1769441602697,7.2635,124.0,123.92,67.93847917]
[1769441603198,7.2642,123.99,123.92,67.93847917]
[1769441603403,63.8200596,124.0,123.9,113.079]
[1769441603404,69.91397627,124.0,123.9,113.079]
[1769441603597,69.91397627,124.0,123.9,181.01747917]
[1769441604197,63.8200596,123.99,123.92,7.2681]
[1769441604601,63.8200596,123.99,123.9,67.93847917]
[1769441606507,63.8200596,123.99,123.91,67.93847917]
[1769441607102,71.0841596,123.99,123.92,7.2681]
[1769441607303,63.8200596,123.99,123.91,67.93847917]
[1769441608002,71.0847596,123.98,123.91,7.2687]
[1769441609603,63.8200596,123.98,123.92,7.2681]
[1769441609810,63.8200596,123.98,123.89,67.93847917]
[1769441610306,63.8200596,123.98,123.89,181.02087917]
[1769441610506,63.8200596,123.98,123.9,67.93847917]
[1769441610900,63.8200596,123.98,123.91,7.2687]
[1769441611499,7.2653,123.97,123.91,7.2687]
[1769441615210,7.2646,123.99,123.92,75.20647917]
[1769441615413,71.0846596,123.99,123.92,67.93847917]
[1769441616211,71.0846596,123.99,123.93,7.2676]
[1769441616416,7.2634,124.01,123.93,67.93847917]
[1769441617014,71.0834596,124.01,123.93,67.93847917]
[1769441617214,7.2635,124.0,123.94,7.267]
[1769441617714,63.8200596,124.01,123.94,7.267]
[1769441618309,63.8200596,124.03,123.95,67.93847917]
[1769441618716,63.8200596,124.03,123.98,7.2646]
[1769441618914,7.261,124.05,123.98,7.2646]
[1769441619219,71.0810596,124.05,123.98,7.2646]
[1769441620019,71.0810596,124.05,123.98,75.20307917]
[1769441620417,7.2612,124.04,123.98,67.93847917]
[1769441620615,63.8200596,124.04,123.95,67.93847917]
[1769441620805,63.8200596,124.04,123.96,67.93847917]
[1769441621010,376.5600596,124.06,123.96,67.93847917]
[1769441621217,376.5600596,124.06,123.99,7.264]
[1769441621622,71.0800596,124.06,124.0,7.2634]
[1769441621817,63.8200596,124.06,124.0,7.2634]
[1769441624118,71.0800596,124.06,124.0,7.2634]
[1769441624312,71.0800596,124.06,123.98,67.93847917]
[1769441625014,71.0800596,124.06,124.0,7.2635]
[1769441625417,63.8200596,124.06,124.0,7.2635]
[1769441627821,71.0800596,124.06,124.0,7.2635]
[1769441628023,71.0800596,124.06,123.96,113.0217]
[1769441628024,63.8200596,124.06,123.96,67.93847917]
[1769441628419,63.8200596,124.04,123.96,75.20387917]
[1769441628718,63.8200596,124.04,123.93,68.54136524]
[1769441629121,66.93275371,124.02,123.95,7.2664]
[1769441629825,66.93275371,124.0,123.9,332.26136524]
[1769441630118,66.93275371,123.97,123.87,68.54136524]
[1769441630315,74.19985371,123.94,123.87,68.54136524]
[1769441630929,74.20045371,123.93,123.84,68.54136524]
[1769441631518,74.20045371,123.93,123.86,7.2715]
[1769441632925,7.2682,123.92,123.84,75.81376524]
[1769441633125,7.2682,123.92,123.84,68.54136524]
[1769441633427,66.93275371,123.93,123.86,7.2716]
[1769441633629,74.20035371,123.93,123.86,7.2716]
[1769441633926,73.02667038,123.93,123.84,75.81366524]
[1769441634428,80.29467038,123.93,123.84,68.54136524]
[1769441635523,7.2667,123.95,123.85,68.54136524]
[1769441635826,74.19945371,123.95,123.86,68.54136524]
[1769441636027,66.93275371,123.95,123.86,75.81256524]
[1769441636525,66.93275371,123.94,123.86,75.81256524]
[1769441636726,73.02667038,123.94,123.86,75.81256524]
[1769441636922,66.93275371,123.93,123.84,7.2725]
[1769441637919,7.2683,123.92,123.84,7.2725]
[1769441638122,74.20105371,123.92,123.85,7.2722]
[1769441640133,74.20165371,123.91,123.84,68.54136524]
[1769441640638,74.20085371,123.93,123.84,68.54136524]
[1769441641436,74.20085371,123.93,123.86,7.2715]
[1769441641634,66.93275371,123.93,123.86,68.54136524]
[1769441641841,389.05275371,123.96,123.87,68.54136524]
[1769441642037,389.05275371,123.96,123.9,7.2692]
[1769441642241,322.12,123.96,123.9,7.2692]
[1769441642532,66.93275371,123.99,123.9,7.2692]
[1769441642734,74.19805371,123.97,123.9,7.2692]
[1769441643039,66.93275371,123.97,123.88,7.2701]
[1769441643940,74.19925371,123.95,123.88,7.2701]
[1769441645150,66.93275371,123.95,123.89,7.2699]
[1769441645846,74.19915371,123.95,123.89,7.2699]
[1769441646053,74.19915371,123.95,123.86,181.65376524]
[1769441646645,74.19975371,123.94,123.86,68.54136524]
[1769441647550,74.19975371,123.94,123.88,7.2705]
[1769441647852,66.93275371,123.97,123.87,68.54136524]
[1769441648051,66.93275371,123.97,123.89,68.54136524]
[1769441648353,66.93275371,123.97,123.91,7.2687]
[1769441648555,66.93275371,123.97,123.89,68.54136524]
[1769441648846,66.93275371,123.97,123.89,75.81126524]
[1769441649251,74.19935371,123.95,123.88,7.2703]
[1769441650149,74.19995371,123.94,123.86,75.81246524]
[1769441650347,66.93275371,123.94,123.86,75.81246524]
[1769441651951,74.20035371,123.93,123.86,75.81246524]
[1769441652251,66.93275371,123.93,123.86,75.81246524]
[1769441653054,66.93275371,123.92,123.84,75.81386524]
[1769441653352,66.93275371,123.92,123.84,68.54136524]
[1769441654250,74.20095371,123.92,123.85,7.2722]
[1769441654650,66.93275371,123.92,123.83,68.54136524]
[1769441654846,66.93275371,123.91,123.84,68.54136524]
[1769441655241,73.03053037,123.96,123.85,68.54136524]
[1769441655448,7.2669,123.95,123.88,75.81176524]
[1769441656257,74.19965371,123.95,123.88,75.81176524]
[1769441656548,66.93275371,123.94,123.87,7.2711]
[1769441657956,7.2677,123.93,123.87,7.2711]
[1769441658861,71.12643206,123.93,123.87,7.2711]
[1769441661055,63.85873206,123.93,123.88,7.2703]
[1769441661255,63.85873206,123.95,123.87,68.24626964]
[1769441661649,63.85873206,123.95,123.89,68.24626964]
[1769441662660,71.12383206,123.98,123.9,68.24626964]
[1769441663762,7.2652,123.97,123.91,7.2682]
[1769441666064,71.12343206,123.98,123.91,7.2682]
[1769441666461,322.18,123.99,123.92,68.24626964]
[1769441666760,71.12223206,124.0,123.92,68.24626964]
[1769441667366,63.85873206,124.0,123.93,68.24626964]
[1769441668465,63.85873206,124.0,123.94,7.267]
[1769441669165,71.12283206,123.99,123.92,7.2676]
[1769441669466,63.85873206,123.99,123.91,68.24626964]
[1769441671970,7.2647,123.98,123.92,7.2681]
[1769441672570,71.12413206,123.97,123.9,7.2693]
[1769441673460,63.85873206,123.96,123.89,7.2699]
[1769441674269,71.12453206,123.96,123.89,7.2699]
[1769441674565,69.95650872,123.98,123.9,75.51546964]
[1769441674771,63.85873206,123.98,123.9,75.51546964]
[1769441675071,63.85873206,123.98,123.92,7.2681]
[1769441675566,63.85873206,123.98,123.92,75.51436964]
[1769441675759,63.85873206,124.01,123.93,68.24626964]
[1769441676569,322.16,124.03,123.94,68.24626964]
[1769441676772,63.85873206,124.04,123.94,68.24626964]
[1769441677975,71.12073206,124.03,123.96,7.2657]
[1769441678270,63.85873206,124.03,123.96,68.24626964]
[1769441678869,63.85873206,124.05,123.98,7.2646]
[1769441679171,63.85873206,124.07,123.98,68.24626964]
[1769441679963,71.11923206,124.06,123.98,68.24626964]
[1769441680870,71.11923206,124.06,123.99,7.2639]
[1769441684575,71.11933206,124.05,123.99,7.2639]
[1769441685276,71.11933206,124.05,123.96,181.26756964]
[1769441685476,71.11933206,124.05,123.97,68.24626964]
[1769441685976,71.11933206,124.05,123.98,7.2645]
[1769441687678,2.38525213,124.04,123.99,7.264]
[1769441687879,71.11933206,124.05,123.99,7.264]
[1769441687880,66.24398419,124.05,123.99,7.264]
[1769441688274,63.85873206,124.05,123.99,68.24626964]
[1769441689772,70.42441222,124.03,123.95,68.83454602]
[1769441690083,70.42441222,124.03,123.95,71.21979815]
[1769441690987,2.38525213,124.02,123.95,71.21979815]
[1769441691579,75.30086009,124.03,123.95,68.83454602]
[1769441691782,68.03916009,124.03,123.97,68.83454602]
[1769441692183,68.03916009,124.06,123.97,68.83454602]
[1769441692386,7.2607,124.05,123.99,7.264]
[1769441692584,68.03916009,124.06,123.99,76.09854602]
[1769441693189,75.29916009,124.06,124.0,7.2632]
[1769441693687,75.29916009,124.06,123.99,76.09854602]
[1769441694486,68.03916009,124.04,123.96,68.83454602]
[1769441695381,68.03916009,124.04,123.98,7.2644]
[1769441695689,68.03916009,124.04,123.97,68.83454602]
[1769441695884,75.29916009,124.06,123.99,7.264]
[1769441696086,68.03916009,124.06,123.99,68.83454602]
[1769441696587,75.29916009,124.06,123.99,68.83454602]
[1769441696892,68.03916009,124.06,123.98,7.2641]
[1769441697081,75.30086009,124.03,123.97,76.09974602]
[1769441697286,68.03916009,124.03,123.94,68.83454602]
[1769441697680,68.03916009,124.01,123.94,76.10094602]
[1769441697989,74.12562073,124.01,123.92,68.83454602]
[1769441698184,75.30286009,124.0,123.93,7.2675]
[1769441698778,75.30326009,123.99,123.92,68.83454602]
[1769441698989,74.12562073,123.99,123.89,335.29454602]
[1769441699784,74.12562073,123.99,123.9,68.83454602]
[1769441700590,75.30446009,123.97,123.9,68.83454602]
[1769441700790,74.12562073,123.97,123.89,7.2696]
[1769441700990,68.03916009,123.97,123.91,7.2687]
[1769441701193,68.03916009,123.97,123.89,68.83454602]
[1769441701491,74.12562073,123.96,123.86,68.83454602]
[1769441701695,75.30696009,123.93,123.86,76.10574602]